[Event "*** Titled Tuesday Blitz"]
[Site "Chess.com"]
[Date "2021.04.27"]
[Round "10"]
[White "A-S-00"]
[Black "Cambek64"]
[Result "0-1"]
[WhiteElo "2322"]
[BlackElo "2478"]
[TimeControl "180+1"]
[EndTime "11:56:22 PDT"]
[Termination "Cambek64 won on time"]

1. d4 {[%clk 0:03:00.8]} 1... d5 {[%clk 0:02:48.8]} 2. Nf3 {[%clk 0:02:48.9]}
2... Bf5 {[%clk 0:02:42.2]} 3. Bf4 {[%clk 0:02:48.2]} 3... e6 {[%clk 0:02:40.3]}
4. e3 {[%clk 0:02:47.8]} 4... c6 {[%clk 0:02:39.8]} 5. Nbd2 {[%clk 0:02:43.9]}
5... Qb6 {[%clk 0:02:39.5]} 6. Qc1 {[%clk 0:02:42]} 6... h6 {[%clk 0:02:39]} 7.
c4 {[%clk 0:02:41.1]} 7... Nd7 {[%clk 0:02:38.9]} 8. Be2 {[%clk 0:02:39.1]} 8...
Ngf6 {[%clk 0:02:37.2]} 9. O-O {[%clk 0:02:38.4]} 9... Be7 {[%clk 0:02:35.5]}
10. h3 {[%clk 0:02:31.6]} 10... O-O {[%clk 0:02:35.8]} 11. Ne5 {[%clk 0:02:31]}
11... Nxe5 {[%clk 0:02:32.1]} 12. Bxe5 {[%clk 0:02:30.5]} 12... Nd7 {[%clk
0:02:31.7]} 13. Bf4 {[%clk 0:02:25.6]} 13... Bf6 {[%clk 0:02:27.6]} 14. c5
{[%clk 0:02:11.3]} 14... Qd8 {[%clk 0:02:26.1]} 15. Nf3 {[%clk 0:02:04]} 15...
Re8 {[%clk 0:02:22.5]} 16. b4 {[%clk 0:01:54.7]} 16... a6 {[%clk 0:02:16.4]} 17.
a4 {[%clk 0:01:52.3]} 17... e5 {[%clk 0:02:12.2]} 18. dxe5 {[%clk 0:01:51.5]}
18... Nxe5 {[%clk 0:02:11.2]} 19. Nxe5 {[%clk 0:01:40.1]} 19... Bxe5 {[%clk
0:02:08.9]} 20. Bxe5 {[%clk 0:01:37.4]} 20... Rxe5 {[%clk 0:02:09.7]} 21. Qc3
{[%clk 0:01:31.1]} 21... Re8 {[%clk 0:02:04.2]} 22. b5 {[%clk 0:01:27.8]} 22...
axb5 {[%clk 0:02:01.4]} 23. axb5 {[%clk 0:01:26]} 23... Qg5 {[%clk 0:02:01.1]}
24. Kh2 {[%clk 0:01:20.5]} 24... Be4 {[%clk 0:01:58.1]} 25. f3 {[%clk
0:01:14.6]} 25... Bg6 {[%clk 0:01:56.8]} 26. bxc6 {[%clk 0:00:56.3]} 26... bxc6
{[%clk 0:01:54.8]} 27. Rxa8 {[%clk 0:00:52.8]} 27... Rxa8 {[%clk 0:01:54]} 28.
f4 {[%clk 0:00:49.4]} 28... Qe7 {[%clk 0:01:52.1]} 29. f5 {[%clk 0:00:47.5]}
29... Bh7 {[%clk 0:01:47.3]} 30. f6 {[%clk 0:00:45.7]} 30... gxf6 {[%clk
0:01:42.3]} 31. Rxf6 {[%clk 0:00:42.3]} 31... Re8 {[%clk 0:01:38.8]} 32. Rxc6
{[%clk 0:00:39.2]} 32... Qxe3 {[%clk 0:01:39.1]} 33. Qxe3 {[%clk 0:00:38]} 33...
Rxe3 {[%clk 0:01:39.4]} 34. Bf3 {[%clk 0:00:38.5]} 34... d4 {[%clk 0:01:36.2]}
35. Rd6 {[%clk 0:00:38.5]} 35... Rc3 {[%clk 0:01:31.6]} 36. c6 {[%clk
0:00:36.9]} 36... d3 {[%clk 0:01:31.1]} 37. Kg3 {[%clk 0:00:33]} 37... Kf8
{[%clk 0:01:20.8]} 38. Kf4 {[%clk 0:00:30.9]} 38... Bg6 {[%clk 0:01:14.9]} 39.
Ke3 {[%clk 0:00:29.3]} 39... Ke7 {[%clk 0:01:11.8]} 40. Rd7+ {[%clk 0:00:29.2]}
40... Ke6 {[%clk 0:01:12.2]} 41. Kd2 {[%clk 0:00:26.3]} 41... Rc2+ {[%clk
0:01:10.4]} 42. Kd1 {[%clk 0:00:26.7]} 42... Rc3 {[%clk 0:01:09.4]} 43. Bg4+
{[%clk 0:00:20.5]} 43... f5 {[%clk 0:01:07.7]} 44. Bf3 {[%clk 0:00:20.6]} 44...
f4 {[%clk 0:01:07.8]} 45. Rd4 {[%clk 0:00:18.6]} 45... Ke5 {[%clk 0:01:05.7]}
46. Rd5+ {[%clk 0:00:17.9]} 46... Ke6 {[%clk 0:01:05.5]} 47. Rd8 {[%clk
0:00:18.3]} 47... Bf5 {[%clk 0:01:03]} 48. Re8+ {[%clk 0:00:17.9]} 48... Kd6
{[%clk 0:01:00.5]} 49. Rd8+ {[%clk 0:00:17.7]} 49... Ke5 {[%clk 0:00:58.5]} 50.
Rd5+ {[%clk 0:00:17.7]} 50... Ke6 {[%clk 0:00:57.3]} 51. Rd4 {[%clk 0:00:16.2]}
51... Ke5 {[%clk 0:00:56]} 52. Rd5+ {[%clk 0:00:14.9]} 52... Kf6 {[%clk
0:00:56]} 53. Rd4 {[%clk 0:00:14.1]} 53... Kg5 {[%clk 0:00:54.2]} 54. Rd5 {[%clk
0:00:14.1]} 54... Kf6 {[%clk 0:00:53.7]} 55. Rd4 {[%clk 0:00:14.4]} 55... Rc2
{[%clk 0:00:49.9]} 56. Rxf4 {[%clk 0:00:12.4]} 56... Ke5 {[%clk 0:00:48.3]} 57.
Ra4 {[%clk 0:00:09]} 57... Be6 {[%clk 0:00:45.9]} 58. Ra5+ {[%clk 0:00:08.7]}
58... Kd4 {[%clk 0:00:45.2]} 59. Ra4+ {[%clk 0:00:06.4]} 59... Ke5 {[%clk
0:00:38.8]} 60. Re4+ {[%clk 0:00:05.5]} 60... Kd6 {[%clk 0:00:36.2]} 61. Rd4+
{[%clk 0:00:04.4]} 61... Kc7 {[%clk 0:00:36.2]} 62. Rxd3 {[%clk 0:00:04.8]}
62... Rc5 {[%clk 0:00:33.9]} 63. Re3 {[%clk 0:00:03.8]} 63... Kd6 {[%clk
0:00:27.1]} 64. Rd3+ {[%clk 0:00:03.3]} 64... Ke5 {[%clk 0:00:26.1]} 65. Re3+
{[%clk 0:00:03.2]} 65... Kd6 {[%clk 0:00:24.5]} 66. Ke1 {[%clk 0:00:02.4]} 66...
Rc2 {[%clk 0:00:23.5]} 67. Kf1 {[%clk 0:00:02.2]} 67... Bc4+ {[%clk 0:00:19.1]}
68. Kg1 {[%clk 0:00:01.5]} 68... Be6 {[%clk 0:00:19.7]} 69. Kh2 {[%clk
0:00:01.9]} 69... Rc4 {[%clk 0:00:18.7]} 70. Kg3 {[%clk 0:00:02.2]} 70... Bf5
{[%clk 0:00:17.8]} 71. Re2 {[%clk 0:00:01.3]} 71... Kc7 {[%clk 0:00:12.1]} 72.
Rd2 {[%clk 0:00:01]} 72... Be6 {[%clk 0:00:11.4]} 73. Kf2 {[%clk 0:00:00.9]}
73... Rc3 {[%clk 0:00:10.9]} 74. g4 {[%clk 0:00:01.2]} 74... Rc5 {[%clk
0:00:08.1]} 75. Re2 {[%clk 0:00:01.7]} 75... Rc3 {[%clk 0:00:07.4]} 76. Re3
{[%clk 0:00:02]} 76... Rc2+ {[%clk 0:00:06]} 77. Kg3 {[%clk 0:00:01.4]} 77...
Bc8 {[%clk 0:00:03.5]} 78. h4 {[%clk 0:00:00.6]} 78... Rc1 {[%clk 0:00:02.1]}
0-1

[Event "*** Titled Tuesday Blitz"]
[Site "Chess.com"]
[Date "2021.04.27"]
[Round "11"]
[White "Dyadya81"]
[Black "KIEV-1"]
[Result "1-0"]
[WhiteElo "2723"]
[BlackElo "2286"]
[TimeControl "180+1"]
[EndTime "11:57:44 PDT"]
[Termination "Dyadya81 won by resignation"]

1. e4 {[%clk 0:03:00.9]} 1... c5 {[%clk 0:03:00]} 2. Nc3 {[%clk 0:03:00.2]} 2...
Nc6 {[%clk 0:03:00.1]} 3. Bb5 {[%clk 0:03:00.2]} 3... Nd4 {[%clk 0:02:59.3]} 4.
Bc4 {[%clk 0:03:00.6]} 4... e6 {[%clk 0:02:59]} 5. Nge2 {[%clk 0:03:00.7]} 5...
Nxe2 {[%clk 0:02:58.4]} 6. Qxe2 {[%clk 0:03:01.6]} 6... a6 {[%clk 0:02:58.7]} 7.
a4 {[%clk 0:03:01.6]} 7... b6 {[%clk 0:02:58.5]} 8. O-O {[%clk 0:03:00.3]} 8...
Bb7 {[%clk 0:02:58.6]} 9. f4 {[%clk 0:03:00.8]} 9... Ne7 {[%clk 0:02:56.9]} 10.
f5 {[%clk 0:03:00.2]} 10... e5 {[%clk 0:02:54.5]} 11. f6 {[%clk 0:02:56.7]}
11... gxf6 {[%clk 0:02:53.8]} 12. Rxf6 {[%clk 0:02:53.2]} 12... d5 {[%clk
0:02:53.8]} 1-0

[Event "*** Titled Tuesday Blitz"]
[Site "Chess.com"]
[Date "2021.04.27"]
[Round "11"]
[White "BahadirOzen"]
[Black "InvisibleWarrior2252"]
[Result "0-1"]
[WhiteElo "2658"]
[BlackElo "2571"]
[TimeControl "180+1"]
[EndTime "11:58:17 PDT"]
[Termination "InvisibleWarrior2252 won by resignation"]

1. g3 {[%clk 0:03:00.9]} 1... Nf6 {[%clk 0:02:59.3]} 2. Bg2 {[%clk 0:03:01]}
2... e6 {[%clk 0:03:00]} 3. Nf3 {[%clk 0:03:00.2]} 3... d5 {[%clk 0:03:00.6]} 4.
O-O {[%clk 0:03:00.3]} 4... Be7 {[%clk 0:03:01.3]} 5. d4 {[%clk 0:03:00.6]} 5...
O-O {[%clk 0:03:01.9]} 6. c4 {[%clk 0:03:01.1]} 6... dxc4 {[%clk 0:03:02.8]} 7.
Qc2 {[%clk 0:03:01.3]} 7... a6 {[%clk 0:03:03.3]} 8. a4 {[%clk 0:03:01.7]} 8...
Nc6 {[%clk 0:03:03.4]} 9. Qxc4 {[%clk 0:02:48.6]} 9... Na5 {[%clk 0:03:00.8]}
10. Qc2 {[%clk 0:02:46.6]} 10... b6 {[%clk 0:03:00.1]} 11. Ne5 {[%clk
0:02:44.6]} 11... Bb7 {[%clk 0:03:00.2]} 12. Bxb7 {[%clk 0:02:43.3]} 12... Nxb7
{[%clk 0:03:01.1]} 13. Nc6 {[%clk 0:02:40.4]} 13... Qe8 {[%clk 0:03:01.4]} 14.
e4 {[%clk 0:02:32]} 14... Bc5 {[%clk 0:03:00.9]} 0-1

[Event "*** Titled Tuesday Blitz"]
[Site "Chess.com"]
[Date "2021.04.27"]
[Round "11"]
[White "Matensien"]
[Black "anon569"]
[Result "1-0"]
[WhiteElo "2354"]
[BlackElo "2246"]
[TimeControl "180+1"]
[EndTime "11:59:02 PDT"]
[Termination "Matensien won by resignation"]

1. Nf3 {[%clk 0:03:00.9]} 1... Nf6 {[%clk 0:02:59.3]} 2. c4 {[%clk 0:03:00.5]}
2... g6 {[%clk 0:02:56.7]} 3. d4 {[%clk 0:03:00.5]} 3... b6 {[%clk 0:02:56.1]}
4. g3 {[%clk 0:03:00.6]} 4... Bb7 {[%clk 0:02:56.7]} 5. Bg2 {[%clk 0:03:01]}
5... Bg7 {[%clk 0:02:56.7]} 6. O-O {[%clk 0:03:01.5]} 6... d6 {[%clk 0:02:57.3]}
7. d5 {[%clk 0:02:58.4]} 7... Nbd7 {[%clk 0:02:57.2]} 8. Nc3 {[%clk 0:02:58.7]}
8... e5 {[%clk 0:02:53.4]} 9. dxe6 {[%clk 0:02:58.2]} 9... fxe6 {[%clk
0:02:53.1]} 10. Ng5 {[%clk 0:02:58.3]} 10... Bxg2 {[%clk 0:02:18.7]} 11. Nxe6
{[%clk 0:02:57.3]} 11... Qe7 {[%clk 0:02:19.6]} 12. Nxg7+ {[%clk 0:02:51]} 12...
Qxg7 {[%clk 0:02:19]} 13. Kxg2 {[%clk 0:02:51.9]} 13... O-O {[%clk 0:02:19.1]}
14. Bg5 {[%clk 0:02:44.2]} 14... Rae8 {[%clk 0:02:16.7]} 15. Bxf6 {[%clk
0:02:38.4]} 15... Nxf6 {[%clk 0:02:12.3]} 16. e3 {[%clk 0:02:37.9]} 16... Ng4
{[%clk 0:02:06.8]} 17. Qxg4 {[%clk 0:02:35.3]} 1-0

[Event "*** Titled Tuesday Blitz"]
[Site "Chess.com"]
[Date "2021.04.27"]
[Round "11"]
[White "MVM2008"]
[Black "thechesscorner64"]
[Result "0-1"]
[WhiteElo "2263"]
[BlackElo "2381"]
[TimeControl "180+1"]
[EndTime "11:59:24 PDT"]
[Termination "thechesscorner64 won by resignation"]

1. f3 {[%clk 0:03:00.9]} 1... d5 {[%clk 0:02:59]} 2. Kf2 {[%clk 0:02:59]} 2...
c5 {[%clk 0:02:58.6]} 3. e3 {[%clk 0:02:56.9]} 3... h5 {[%clk 0:02:55.9]} 4. d4
{[%clk 0:02:56.3]} 4... Nc6 {[%clk 0:02:54.7]} 5. c3 {[%clk 0:02:55.3]} 5... e5
{[%clk 0:02:54.1]} 6. Ne2 {[%clk 0:02:53.6]} 6... h4 {[%clk 0:02:52.4]} 7. Nd2
{[%clk 0:02:47.8]} 7... Nf6 {[%clk 0:02:51.4]} 8. h3 {[%clk 0:02:40.2]} 8... Nh5
{[%clk 0:02:48.4]} 9. a3 {[%clk 0:02:20.1]} 9... Be6 {[%clk 0:02:46.7]} 10. b4
{[%clk 0:02:17.9]} 10... cxd4 {[%clk 0:02:38.4]} 11. cxd4 {[%clk 0:02:05.7]}
11... Ng3 {[%clk 0:02:38.3]} 12. Nxg3 {[%clk 0:01:50.4]} 12... hxg3+ {[%clk
0:02:37.6]} 13. Kxg3 {[%clk 0:01:51.3]} 13... Qh4+ {[%clk 0:02:36.2]} 14. Kh2
{[%clk 0:01:51.2]} 14... exd4 {[%clk 0:02:36.6]} 15. exd4 {[%clk 0:01:40.8]}
15... Bd6+ {[%clk 0:02:36.3]} 0-1

[Event "*** Titled Tuesday Blitz"]
[Site "Chess.com"]
[Date "2021.04.27"]
[Round "11"]
[White "Kretov_Evgenij"]
[Black "Leo_C"]
[Result "1/2-1/2"]
[WhiteElo "2634"]
[BlackElo "2475"]
[TimeControl "180+1"]
[EndTime "11:59:25 PDT"]
[Termination "Game drawn by agreement"]

1. d4 {[%clk 0:03:00.9]} 1... d5 {[%clk 0:02:59.5]} 2. c4 {[%clk 0:03:01.2]}
2... e6 {[%clk 0:02:59.9]} 3. Nc3 {[%clk 0:03:01.4]} 3... c6 {[%clk 0:03:00.4]}
4. e3 {[%clk 0:03:00.4]} 4... Nf6 {[%clk 0:02:59.5]} 5. Nf3 {[%clk 0:02:59.1]}
5... Nbd7 {[%clk 0:02:59.8]} 6. Bd3 {[%clk 0:02:59.3]} 6... dxc4 {[%clk
0:02:59.4]} 7. Bxc4 {[%clk 0:02:59.7]} 7... b5 {[%clk 0:03:00]} 8. Be2 {[%clk
0:03:00]} 8... Bd6 {[%clk 0:03:00.6]} 9. e4 {[%clk 0:02:59.7]} 9... e5 {[%clk
0:03:00.4]} 10. dxe5 {[%clk 0:02:59.6]} 10... Nxe5 {[%clk 0:02:58.7]} 11. Nxe5
{[%clk 0:02:59.7]} 11... Bxe5 {[%clk 0:02:58.6]} 12. Qxd8+ {[%clk 0:03:00.2]}
12... Kxd8 {[%clk 0:02:58.6]} 13. Bg5 {[%clk 0:03:00.8]} 13... h6 {[%clk
0:02:56.7]} 14. Bh4 {[%clk 0:02:59.3]} 14... g5 {[%clk 0:02:50.3]} 15. O-O-O+
{[%clk 0:02:58.9]} 15... Kc7 {[%clk 0:02:47.8]} 16. Bg3 {[%clk 0:02:58.1]} 16...
Bxg3 {[%clk 0:02:45.6]} 17. hxg3 {[%clk 0:02:58.3]} 17... b4 {[%clk 0:02:45.1]}
18. Na4 {[%clk 0:02:58.4]} 18... Nxe4 {[%clk 0:02:44.6]} 19. Rdf1 {[%clk
0:02:53]} 19... Be6 {[%clk 0:02:37.9]} 20. Bf3 {[%clk 0:02:50.7]} 20... Bd5
{[%clk 0:02:27]} 21. Bxe4 {[%clk 0:02:43.1]} 21... Bxe4 {[%clk 0:02:26.1]} 22.
f3 {[%clk 0:02:43.4]} 22... Bd5 {[%clk 0:02:25.6]} 23. b3 {[%clk 0:02:42.9]}
23... Rae8 {[%clk 0:02:20.2]} 24. Kd2 {[%clk 0:02:43]} 24... Kd6 {[%clk
0:02:17.4]} 25. Nb2 {[%clk 0:02:41.2]} 25... c5 {[%clk 0:02:14.7]} 26. Nd3
{[%clk 0:02:41.3]} 26... a5 {[%clk 0:02:09]} 27. Rc1 {[%clk 0:02:41.1]} 27...
Rc8 {[%clk 0:02:02.8]} 1/2-1/2

[Event "*** Titled Tuesday Blitz"]
[Site "Chess.com"]
[Date "2021.04.27"]
[Round "11"]
[White "HanSchut"]
[Black "AungTZ"]
[Result "0-1"]
[WhiteElo "2252"]
[BlackElo "2157"]
[TimeControl "180+1"]
[EndTime "11:59:44 PDT"]
[Termination "AungTZ won by resignation"]

1. e4 {[%clk 0:03:00.9]} 1... c5 {[%clk 0:02:57.7]} 2. Nf3 {[%clk 0:03:01.2]}
2... Nc6 {[%clk 0:02:58.5]} 3. d4 {[%clk 0:03:01.3]} 3... cxd4 {[%clk
0:02:59.4]} 4. Nxd4 {[%clk 0:03:01.8]} 4... Nf6 {[%clk 0:03:00.2]} 5. Nc3 {[%clk
0:03:01.9]} 5... d6 {[%clk 0:03:00.4]} 6. Bg5 {[%clk 0:03:00.9]} 6... e6 {[%clk
0:03:00]} 7. f3 {[%clk 0:02:58.3]} 7... a6 {[%clk 0:03:00.3]} 8. Qd2 {[%clk
0:02:58.5]} 8... h6 {[%clk 0:02:59.6]} 9. Be3 {[%clk 0:02:58.2]} 9... Bd7 {[%clk
0:02:59.4]} 10. O-O-O {[%clk 0:02:54.4]} 10... b5 {[%clk 0:02:59.9]} 11. a3
{[%clk 0:02:54.7]} 11... b4 {[%clk 0:02:52.9]} 12. axb4 {[%clk 0:02:54.4]} 12...
Nxb4 {[%clk 0:02:53.8]} 13. Bc4 {[%clk 0:02:40.3]} 13... d5 {[%clk 0:02:46.1]}
14. exd5 {[%clk 0:02:39.5]} 14... Nfxd5 {[%clk 0:02:45.7]} 15. Nxd5 {[%clk
0:02:32.6]} 15... exd5 {[%clk 0:02:45.3]} 16. Rhe1 {[%clk 0:02:20.7]} 16... Be7
{[%clk 0:02:44.6]} 17. Qxb4 {[%clk 0:02:08.5]} 17... Bxb4 {[%clk 0:02:42.6]} 18.
Bg5+ {[%clk 0:02:07.1]} 18... Bxe1 {[%clk 0:02:42.1]} 19. Rxe1+ {[%clk
0:02:05.2]} 19... Be6 {[%clk 0:02:29.9]} 20. Bxd8 {[%clk 0:02:03.5]} 20... Kxd8
{[%clk 0:02:27.6]} 21. Bb3 {[%clk 0:01:53.5]} 21... Re8 {[%clk 0:02:26.1]} 22.
Ba4 {[%clk 0:01:50.8]} 22... Bd7 {[%clk 0:02:24.8]} 23. Nc6+ {[%clk 0:01:49.2]}
23... Kc7 {[%clk 0:02:24.9]} 0-1

[Event "*** Titled Tuesday Blitz"]
[Site "Chess.com"]
[Date "2021.04.27"]
[Round "11"]
[White "DeTimmerman"]
[Black "Skat2704"]
[Result "1-0"]
[WhiteElo "2802"]
[BlackElo "2687"]
[TimeControl "180+1"]
[EndTime "11:59:56 PDT"]
[Termination "DeTimmerman won by resignation"]

1. Nf3 {[%clk 0:02:58.9]} 1... d5 {[%clk 0:02:59.7]} 2. b4 {[%clk 0:02:54.1]}
2... e6 {[%clk 0:02:58.2]} 3. Bb2 {[%clk 0:02:54.6]} 3... Nf6 {[%clk 0:02:57.6]}
4. b5 {[%clk 0:02:55.2]} 4... Be7 {[%clk 0:02:57.4]} 5. a4 {[%clk 0:02:55.6]}
5... O-O {[%clk 0:02:57.2]} 6. e3 {[%clk 0:02:55.9]} 6... c5 {[%clk 0:02:56.1]}
7. c4 {[%clk 0:02:56.2]} 7... b6 {[%clk 0:02:55.9]} 8. Be2 {[%clk 0:02:56]} 8...
Bb7 {[%clk 0:02:55.6]} 9. O-O {[%clk 0:02:56.2]} 9... Nbd7 {[%clk 0:02:55.3]}
10. d4 {[%clk 0:02:55.7]} 10... cxd4 {[%clk 0:02:53.8]} 11. Nxd4 {[%clk
0:02:56.6]} 11... dxc4 {[%clk 0:02:52.7]} 12. Bxc4 {[%clk 0:02:57.5]} 12... Rc8
{[%clk 0:02:53]} 13. Be2 {[%clk 0:02:57.7]} 13... Nc5 {[%clk 0:02:51.4]} 14. Nd2
{[%clk 0:02:57.2]} 14... Nfe4 {[%clk 0:02:48.2]} 15. Nxe4 {[%clk 0:02:57]} 15...
Nxe4 {[%clk 0:02:47.3]} 16. Bf3 {[%clk 0:02:57.4]} 16... Bf6 {[%clk 0:02:44.6]}
17. Rc1 {[%clk 0:02:54]} 17... Rxc1 {[%clk 0:02:27]} 18. Qxc1 {[%clk 0:02:54.9]}
18... Qd5 {[%clk 0:02:10.7]} 19. Rd1 {[%clk 0:02:52.7]} 19... Rc8 {[%clk
0:02:10]} 20. Nc6 {[%clk 0:02:45]} 20... Qf5 {[%clk 0:01:55.4]} 21. Bxf6 {[%clk
0:02:21.4]} 21... Bxc6 {[%clk 0:01:46.2]} 22. Qxc6 {[%clk 0:02:20.9]} 1-0

[Event "*** Titled Tuesday Blitz"]
[Site "Chess.com"]
[Date "2021.04.27"]
[Round "11"]
[White "chessdiamant"]
[Black "salomez"]
[Result "1-0"]
[WhiteElo "2294"]
[BlackElo "2141"]
[TimeControl "180+1"]
[EndTime "12:00:53 PDT"]
[Termination "chessdiamant won by resignation"]

1. e4 {[%clk 0:02:58.9]} 1... c5 {[%clk 0:02:58.2]} 2. Nf3 {[%clk 0:02:54.2]}
2... e6 {[%clk 0:02:58.4]} 3. d4 {[%clk 0:02:53.3]} 3... cxd4 {[%clk 0:02:59.3]}
4. Nxd4 {[%clk 0:02:54.2]} 4... Nf6 {[%clk 0:02:59.9]} 5. Nc3 {[%clk 0:02:53.8]}
5... Nc6 {[%clk 0:03:00.1]} 6. Nxc6 {[%clk 0:02:47.6]} 6... bxc6 {[%clk
0:02:58.4]} 7. e5 {[%clk 0:02:47.9]} 7... Nd5 {[%clk 0:02:56.8]} 8. Ne4 {[%clk
0:02:48.4]} 8... Qc7 {[%clk 0:02:56.7]} 9. f4 {[%clk 0:02:46.9]} 9... Qb6 {[%clk
0:02:57.3]} 10. c4 {[%clk 0:02:43.5]} 10... Bb4+ {[%clk 0:02:57.4]} 11. Ke2
{[%clk 0:02:40.7]} 11... Ba6 {[%clk 0:02:57.9]} 12. Kf3 {[%clk 0:02:40.7]} 12...
f5 {[%clk 0:02:57.8]} 13. exf6 {[%clk 0:02:37.4]} 13... Nxf6 {[%clk 0:02:56.8]}
14. Nxf6+ {[%clk 0:02:36.1]} 14... gxf6 {[%clk 0:02:57.4]} 15. Bd3 {[%clk
0:02:31.9]} 15... c5 {[%clk 0:02:37.1]} 16. Be3 {[%clk 0:02:26]} 16... Bb7+
{[%clk 0:02:35]} 17. Kf2 {[%clk 0:02:24.7]} 17... Qc6 {[%clk 0:02:29.1]} 18. Rg1
{[%clk 0:02:19.7]} 18... O-O-O {[%clk 0:02:22.7]} 19. a3 {[%clk 0:02:17.2]}
19... Ba5 {[%clk 0:02:22.6]} 20. b4 {[%clk 0:02:13.3]} 20... cxb4 {[%clk
0:02:20.7]} 21. axb4 {[%clk 0:02:14.2]} 21... Bxb4 {[%clk 0:02:19.9]} 22. Qe2
{[%clk 0:01:46.5]} 22... Rhg8 {[%clk 0:02:14.3]} 23. g3 {[%clk 0:01:44]} 23...
Bc5 {[%clk 0:02:11.3]} 24. Ra5 {[%clk 0:01:34.2]} 24... Bxe3+ {[%clk 0:02:08.8]}
25. Qxe3 {[%clk 0:01:35.1]} 25... a6 {[%clk 0:01:56.6]} 26. Rc5 {[%clk
0:01:34.6]} 1-0

[Event "*** Titled Tuesday Blitz"]
[Site "Chess.com"]
[Date "2021.04.27"]
[Round "11"]
[White "RiskyDecision"]
[Black "PavelShkapenko"]
[Result "1-0"]
[WhiteElo "2553"]
[BlackElo "2651"]
[TimeControl "180+1"]
[EndTime "12:01:37 PDT"]
[Termination "RiskyDecision won by resignation"]

1. d4 {[%clk 0:03:00.9]} 1... Nf6 {[%clk 0:02:59.6]} 2. c4 {[%clk 0:03:01]} 2...
e6 {[%clk 0:02:57.5]} 3. g3 {[%clk 0:03:00.5]} 3... Bb4+ {[%clk 0:02:57.3]} 4.
Bd2 {[%clk 0:03:00]} 4... Qe7 {[%clk 0:02:57.6]} 5. Nf3 {[%clk 0:02:59.5]} 5...
Nc6 {[%clk 0:02:57.6]} 6. Nc3 {[%clk 0:02:56.5]} 6... Bxc3 {[%clk 0:02:57.7]} 7.
Bxc3 {[%clk 0:02:56.4]} 7... Ne4 {[%clk 0:02:58.3]} 8. Rc1 {[%clk 0:02:56.9]}
8... O-O {[%clk 0:02:56.1]} 9. Bg2 {[%clk 0:02:56.8]} 9... d6 {[%clk 0:02:56.4]}
10. d5 {[%clk 0:02:54.3]} 10... Nd8 {[%clk 0:02:55.9]} 11. O-O {[%clk
0:02:48.9]} 11... e5 {[%clk 0:02:51.1]} 12. Be1 {[%clk 0:02:33.5]} 12... f5
{[%clk 0:02:43.7]} 13. b4 {[%clk 0:02:29.9]} 13... Nf7 {[%clk 0:02:29.7]} 14. c5
{[%clk 0:02:25]} 14... Nf6 {[%clk 0:02:21.1]} 15. cxd6 {[%clk 0:02:16.6]} 15...
cxd6 {[%clk 0:02:20.8]} 16. b5 {[%clk 0:02:02.3]} 16... b6 {[%clk 0:02:17]} 17.
Bb4 {[%clk 0:01:58.6]} 17... Bb7 {[%clk 0:02:17.2]} 18. Rc6 {[%clk 0:01:48.8]}
18... Bxc6 {[%clk 0:02:11.1]} 19. dxc6 {[%clk 0:01:45.8]} 19... a5 {[%clk
0:02:09.4]} 20. Ba3 {[%clk 0:01:40.5]} 20... Qe6 {[%clk 0:02:09.6]} 21. Qc2
{[%clk 0:01:35.6]} 21... Ne4 {[%clk 0:02:03.1]} 22. Rd1 {[%clk 0:01:32.8]} 22...
Nc5 {[%clk 0:02:03]} 23. Ng5 {[%clk 0:01:27.7]} 23... Qe7 {[%clk 0:01:50.6]} 24.
Nxf7 {[%clk 0:01:26.8]} 24... Rxf7 {[%clk 0:01:50.7]} 25. Bxc5 {[%clk
0:01:10.5]} 25... bxc5 {[%clk 0:01:48.2]} 26. Bd5 {[%clk 0:01:01.5]} 26... e4
{[%clk 0:01:31.3]} 27. b6 {[%clk 0:00:57.8]} 1-0

[Event "*** Titled Tuesday Blitz"]
[Site "Chess.com"]
[Date "2021.04.27"]
[Round "11"]
[White "Bad_left_hook"]
[Black "ljuks68"]
[Result "1-0"]
[WhiteElo "2573"]
[BlackElo "2444"]
[TimeControl "180+1"]
[EndTime "12:01:48 PDT"]
[Termination "Bad_left_hook won by resignation"]

1. d4 {[%clk 0:03:00.9]} 1... d5 {[%clk 0:02:59.6]} 2. c4 {[%clk 0:03:00.7]}
2... c6 {[%clk 0:02:59.9]} 3. Nf3 {[%clk 0:03:00.2]} 3... Nf6 {[%clk 0:03:00.3]}
4. Nc3 {[%clk 0:03:00.4]} 4... dxc4 {[%clk 0:03:00.1]} 5. a4 {[%clk 0:02:59.7]}
5... Bf5 {[%clk 0:02:59.4]} 6. Ne5 {[%clk 0:02:59.4]} 6... Na6 {[%clk
0:02:59.1]} 7. f3 {[%clk 0:02:44.1]} 7... Nd7 {[%clk 0:02:57.8]} 8. Nxc4 {[%clk
0:02:39.8]} 8... e5 {[%clk 0:02:57.6]} 9. e4 {[%clk 0:02:36.2]} 9... exd4 {[%clk
0:02:57.4]} 10. Ne2 {[%clk 0:02:28.9]} 10... Bb4+ {[%clk 0:02:08.3]} 11. Bd2
{[%clk 0:02:22.3]} 11... d3 {[%clk 0:01:52.3]} 12. Bxb4 {[%clk 0:01:33.6]} 12...
dxe2 {[%clk 0:01:22.9]} 13. Nd6+ {[%clk 0:01:04.7]} 13... Kf8 {[%clk 0:01:21.8]}
14. Nxf5+ {[%clk 0:01:04.7]} 14... Nxb4 {[%clk 0:01:21.2]} 15. Qd6+ {[%clk
0:01:04.1]} 15... Kg8 {[%clk 0:01:15]} 16. Ne7+ {[%clk 0:00:47.7]} 16... Kf8
{[%clk 0:01:13.7]} 17. Nxc6+ {[%clk 0:00:43.9]} 1-0

[Event "*** Titled Tuesday Blitz"]
[Site "Chess.com"]
[Date "2021.04.27"]
[Round "11"]
[White "ADODOVE"]
[Black "DarZay"]
[Result "0-1"]
[WhiteElo "1971"]
[BlackElo "2158"]
[TimeControl "180+1"]
[EndTime "12:02:04 PDT"]
[Termination "DarZay won on time"]

1. e4 {[%clk 0:00:41.2]} 1... e5 {[%clk 0:02:59.5]} 2. Nf3 {[%clk 0:00:41]} 2...
Nc6 {[%clk 0:02:59.2]} 3. d4 {[%clk 0:00:41.9]} 3... exd4 {[%clk 0:02:59.1]} 4.
Bc4 {[%clk 0:00:41.8]} 4... Nf6 {[%clk 0:02:53.3]} 5. O-O {[%clk 0:00:41.4]}
5... d5 {[%clk 0:02:48]} 6. exd5 {[%clk 0:00:38.2]} 6... Nxd5 {[%clk 0:02:48]}
7. Re1+ {[%clk 0:00:36.2]} 7... Be6 {[%clk 0:02:48]} 8. Nxd4 {[%clk 0:00:36]}
8... Nxd4 {[%clk 0:02:46]} 9. Qxd4 {[%clk 0:00:35.9]} 9... Be7 {[%clk
0:02:44.4]} 10. Qxg7 {[%clk 0:00:33.8]} 10... Bf6 {[%clk 0:02:40.8]} 11. Qh6
{[%clk 0:00:33.4]} 11... Rg8 {[%clk 0:02:21.6]} 12. Qxh7 {[%clk 0:00:16.2]}
12... Rh8 {[%clk 0:02:18.1]} 13. Rxe6+ {[%clk 0:00:09.8]} 13... fxe6 {[%clk
0:02:14.4]} 14. Qg6+ {[%clk 0:00:09.7]} 14... Ke7 {[%clk 0:02:12.5]} 15. Nc3
{[%clk 0:00:03.6]} 15... Nxc3 {[%clk 0:02:09.7]} 16. Bg5 {[%clk 0:00:01.1]}
16... Qf8 {[%clk 0:01:46.3]} 17. Bxf6+ {[%clk 0:00:02]} 17... Qxf6 {[%clk
0:01:46.1]} 18. Qxf6+ {[%clk 0:00:01.9]} 18... Kxf6 {[%clk 0:01:46.5]} 19. bxc3
{[%clk 0:00:02.4]} 19... Rad8 {[%clk 0:01:43.9]} 0-1